Cogmind - Beta 13 @@@ ROGUE MODE // 2024.03.27 @ 12:03:38 Player: Rae Result: Destroyed by S-10 Pest with Light Assault Rifle Performance ------------- Evolutions (2) 1000 Regions Visited (4) 800 Robots Destroyed (28) 140 Value Destroyed (761) 761 Prototype IDs (0) 0 Alien Tech Used (0) 0 Bonus (0) 0 TOTAL SCORE: 2701 Bonus ------- None Cogmind --------- Core Integrity 0/550 Matter 146/300 Energy 20/100 System Corruption 0% Temperature Cool (21) Movement Core (50) Location -8/Materials Parts ------- > --- POWER (2) -------- (None) > --- PROPULSION (5) --- (None) > --- UTILITY (2) ------ (None) > --- WEAPON (2) ------- Mace > --- INVENTORY (5) ---- Spread Laser Advanced Assault Cannon Advanced Assault Cannon Datajack Peak State ------------ > --- POWER ------------ Ion Engine Light Ion Engine > --- PROPULSION ------- Aluminum Leg Aluminum Leg Titanium Leg Titanium Leg Titanium Leg > --- UTILITY ---------- Hardened Heavy Armor Plating > --- WEAPON ----------- Advanced Assault Cannon Advanced Assault Cannon > --- INVENTORY -------- Spread Laser Spread Laser Spread Laser Advanced Assault Cannon Datajack [Rating: 30] Favorites ----------- Power Ion Engine Engine Ion Engine Propulsion Aluminum Leg Leg Aluminum Leg Wheel Wheel Flight Unit Flight Unit Utility Terrain Scanner Device Terrain Scanner Storage Huge Storage Unit Protection Hardened Heavy Armor Plating Weapon Spread Laser Energy Gun Spread Laser Ballistic Gun Light Assault Rifle Ballistic Cannon Advanced Assault Cannon Impact Weapon Mace Build | -11 -10 -10 -9 -8 ------- Run | Yrd Mat Min Mat Mat Slots Evolved 4 | . . . 2 2 Power 1 | . . . 1 . Propulsion 3 | . . . 1 2 Utility . | . . . . . Weapon . | . . . . . Parts Attached 42 | 5 9 4 10 14 Power 4 | 1 1 . 2 . Engine 4 | 1 1 . 2 . Core . | . . . . . Reactor . | . . . . . Propulsion 18 | 2 4 2 4 6 Treads . | . . . . . Leg 13 | 2 2 2 1 6 Wheel 2 | . 2 . . . Hover . | . . . . . Flight 3 | . . . 3 . Utility 7 | . 2 1 2 2 Device 3 | . . 1 2 . Storage 2 | . 2 . . . Processor . | . . . . . Hackware . | . . . . . Protection 2 | . . . . 2 Artifact . | . . . . . Weapon 13 | 2 2 1 2 6 Energy Gun 8 | 1 2 1 2 2 Energy Cannon . | . . . . . Ballistic Gun 1 | 1 . . . . Ballistic Cannon 3 | . . . . 3 Launcher . | . . . . . Special Weapon . | . . . . . Impact Weapon 1 | . . . . 1 Slashing Weapon . | . . . . . Piercing Weapon . | . . . . . Special Melee Weapon . | . . . . . Unidentified Prototypes . | . . . . . Parts Lost 15 | . 1 . 2 12 Power 3 | . 1 . . 2 Propulsion 5 | . . . . 5 Utility 2 | . . . . 2 Weapon 5 | . . . 2 3 Highest Loss Streak 6 | . 1 . 1 6 To Critical Strikes . | . . . . . Average Slot Usage (%) 75 | . 84 73 80 65 Engine 12 | . 11 14 15 11 Leg 21 | . 12 26 24 24 Wheel 4 | . 15 1 . . Flight 2 | . . . 3 5 Device 6 | . . 1 16 5 Storage 4 | . 16 1 . . Protection 1 | . . . . 4 Energy Gun 16 | . 19 28 20 8 Ballistic Gun 2 | . 8 . . . Ballistic Cannon 2 | . . . . 6 Naked Turns 5 | . . . . 5 Heaviest Build 90 | 6 90 11 18 40 Greatest Support 71 | 20 20 20 30 71 Greatest Overweight (x) 4 | . 4 . 1 4 Average Overweight (x) . | . 2 . . . Largest Inventory Capacity 25 | 5 25 25 5 5 Average Capacity 8 | 5 17 6 5 5 Most Carried 8 | 5 8 6 5 5 Average Carried 4 | 2 5 3 3 4 Final Capacity 25 | 5 25 5 5 5 Final Carried 6 | 4 6 3 5 4 Class Distribution -------------------- 60% | Mutant 39% | Scavenger-Mutant Dominant Class ---------------- Mutant | -10/Materials Mutant | -10/Mines Scavenger-Mutant | -9/Materials Mutant | -8/Materials Resources | -11 -10 -10 -9 -8 ----------- Run | Yrd Mat Min Mat Mat Matter Collected 542 | 242 139 38 90 33 Remotely . | . . . . . Salvage Created 863 | 31 380 113 228 111 Parts 55 | 2 23 6 19 5 Haulers Intercepted . | . . . . . Recyclers Shooed 2 | . . 2 . . Parts Field Recycled . | . . . . . Retrieved Matter . | . . . . . Parts Self-Destructed . | . . . . . Prevented . | . . . . . Kills | -11 -10 -10 -9 -8 ------- Run | Yrd Mat Min Mat Mat Combat Hostiles Destroyed 22 | 1 8 2 7 4 Guns 21 | 1 8 2 7 3 Cannons 1 | . . . . 1 Classes Destroyed 7 | 1 2 1 2 1 Worker 1 | . 1 . . . Tunneler 1 | . . 1 . . Recycler 1 | . . . 1 . Watcher 3 | . 1 . 2 . Swarmer 5 | . . . 4 1 Grunt 15 | 1 8 2 3 1 Sentry 2 | . . . . 2 Best Kill Streak 5 | 1 4 2 5 2 Combat Bots Only 3 | 1 3 2 3 2 Max Kills in Single Turn 2 | 1 1 1 2 1 Gunslinging 1 | . . . 1 . Exploded . | . . . . . Melee . | . . . . . Uniques/NPCs Destroyed . | . . . . . Combat | -11 -10 -10 -9 -8 -------- Run | Yrd Mat Min Mat Mat Hostile Shots Fired 371 | 4 64 15 46 242 Missed 95 | 2 22 2 18 51 Damage Taken 3381 | 24 486 153 289 2429 Core 773 | . 143 35 41 554 Absorbed by Shields . | . . . . . Regen/Repaired (Parts) 10 | . 10 . . . Core Remaining (%) 72 | 100 . 28 89 . Volleys Fired 87 | 3 30 12 21 21 Largest 2 | 2 2 2 2 2 Hottest 130 | 70 105 105 130 113 Shots Fired 161 | 6 60 24 37 34 Gun 144 | 6 60 24 37 17 Cannon 17 | . . . . 17 Launcher . | . . . . . Special . | . . . . . Kinetic 44 | 3 24 . . 17 Thermal 101 | 3 36 12 33 17 Explosive . | . . . . . Electromagnetic 16 | . . 12 4 . Robot Hit Streak 14 | 2 12 6 14 12 Robot Miss Streak 8 | 1 3 2 8 4 Penetration Max . | . . . . . Secondary Targets 4 | . 1 1 2 . Max Gunslinging Chain 1 | . 1 1 1 . Shots Hit Robots 115 | 3 40 18 30 24 Core Hits 89 | 2 21 6 33 27 Critical Kills . | . . . . . Critical Parts Destroyed . | . . . . . Critical Strikes 3 | . 3 . . . Burn 3 | . 3 . . . Melee Attacks . | . . . . . Impact . | . . . . . Slashing . | . . . . . Piercing . | . . . . . Sneak Attacks . | . . . . . Combat Hostiles . | . . . . . Follow-up Attacks . | . . . . . Damage Inflicted 1558 | 34 415 274 400 435 Guns 1358 | 34 415 263 400 246 Cannons 189 | . . . . 189 Explosions . | . . . . . Melee . | . . . . . Ramming 11 | . . 11 . . Kinetic 305 | 9 107 . . 189 Thermal 1056 | 25 308 141 336 246 Explosive . | . . . . . Electromagnetic 186 | . . 122 64 . Impact . | . . . . . Slashing . | . . . . . Piercing . | . . . . . Highest Corruption . | . . . . . Average Corruption . | . . . . . Corruption Purged . | . . . . . Corruption Blocked . | . . . . . Overload Shots . | . . . . . Overflow Damage 13 | . . . . 13 Projectiles 13 | . . . . 13 Explosions . | . . . . . Melee . | . . . . . Knockbacks 5 | . . 1 . 4 Impact 1 | . . 1 . . Kinetic 3 | . . . . 3 Secondary 1 | . . . . 1 Self-Inflicted Damage . | . . . . . Shots . | . . . . . Rammed . | . . . . . Targets Rammed 2 | . . 2 . . Kicked 2 | . . 2 . . Crushed . | . . . . . Highest Temperature 432 | 82 206 432 270 427 Average Temperature 163 | 40 87 190 81 259 Received Heat Transfer 1302 | 12 264 90 108 828 Effects 15 | . . 2 . 13 Shutdowns 5 | . . 1 . 4 Energy Bleed 3 | . . 1 . 2 Interference 2 | . . . . 2 Damage (minor) 1 | . . . . 1 Damage (major) 4 | . . . . 4 Siege Activations . | . . . . . Robots Corrupted . | . . . . . Combat Hostiles . | . . . . . Parts Fried 2 | . . 1 1 . Impact Corruptions . | . . . . . Robots Melted . | . . . . . Combat Hostiles . | . . . . . Parts Melted 2 | . 1 . 1 . Heat Transferred 2292 | 74 1062 333 503 320 Parts Sabotaged . | . . . . . Parts Stolen . | . . . . . Parts Stripped . | . . . . . Power Chain Reactions . | . . . . . Alert | -11 -10 -10 -9 -8 ------- Run | Yrd Mat Min Mat Mat Peak Influence 290 | 20 233 145 290 229 Initial 122 | . 13 90 56 122 Average 140 | 3 139 105 158 172 Maximum Alert Level 1 | . 1 . 1 1 Low Security (%) 75 | 100 68 100 76 66 Level 1 24 | . 31 . 23 33 Level 2 . | . . . . . Level 3 . | . . . . . Level 4 . | . . . . . Level 5 . | . . . . . High Security . | . . . . . Max Security . | . . . . . Squads Dispatched 8 | . 5 . 1 2 Investigation 2 | . 2 . . . Extermination . | . . . . . Reinforcement 6 | . 3 . 1 2 Assault . | . . . . . Garrison . | . . . . . Intercept . | . . . . . Searches Triggered . | . . . . . Construction Impeded . | . . . . . Haulers Reinforced . | . . . . . Active Scanning Responses . | . . . . . Cargo Convoy Interrupts . | . . . . . Stealth | -11 -10 -10 -9 -8 --------- Run | Yrd Mat Min Mat Mat Distress Signals 5 | . 1 1 2 1 Communications Jammed . | . . . . . Distress Signals . | . . . . . Times Spotted 45 | 1 15 2 11 16 Peak Tracking Total 8 | 1 4 2 6 8 Tactical Retreats 2 | . . . 1 1 Traps | -11 -10 -10 -9 -8 ------- Run | Yrd Mat Min Mat Mat Traps Triggered 3 | . 1 . . 2 Indirectly . | . . . . . Trap Hack Attempts . | . . . . . Triggered . | . . . . . Disarmed . | . . . . . Reprogrammed . | . . . . . Reused . | . . . . . Traps Extracted . | . . . . . Installed . | . . . . . Triggered . | . . . . . Machines | -11 -10 -10 -9 -8 ---------- Run | Yrd Mat Min Mat Mat Machines Disabled 1 | . . . . 1 Max in Single Turn 1 | . . . . 1 Machines Repaired . | . . . . . Machines Dismantled . | . . . . . Machines Sabotaged . | . . . . . Overloaded Fab Kills . | . . . . . Hacking | -11 -10 -10 -9 -8 --------- Run | Yrd Mat Min Mat Mat Machines Accessed 2 | . 1 . 1 . Terminals 1 | . . . 1 . Fabricators . | . . . . . Repair Stations 1 | . 1 . . . Recycling Units . | . . . . . Scanalyzers . | . . . . . Garrison Access . | . . . . . Total Hacks 4 | . 3 . 1 . Successful 2 | . 2 . . . Failed 2 | . 1 . 1 . Catastrophic . | . . . . . Database Lockouts . | . . . . . Manual 1 | . . . 1 . Terminals 1 | . . . 1 . Fabricators . | . . . . . Repair Stations 3 | . 3 . . . Recycling Units . | . . . . . Scanalyzers . | . . . . . Garrison Access . | . . . . . Terminal Hacks . | . . . . . Fabricator Hacks . | . . . . . Repair Station Hacks 2 | . 2 . . . Scan Component 1 | . 1 . . . Repair 1 | . 1 . . . Recycling Unit Hacks . | . . . . . Scanalyzer . | . . . . . Garrison Access Hacks . | . . . . . Unauthorized Hacks . | . . . . . Terminals . | . . . . . Fabricators . | . . . . . Repair Stations . | . . . . . Recycling Units . | . . . . . Scanalyzers . | . . . . . Garrison Access . | . . . . . Data Cores Recovered . | . . . . . Used . | . . . . . Hacking Detections 2 | . 1 . 1 . Full Trace Events 1 | . 1 . . . Feedback Events . | . . . . . Feedback Blocked . | . . . . . Robot Schematics Acquired . | . . . . . Robots Built . | . . . . . Authchips . | . . . . . Time . | . . . . . Total Robot Build Rating . | . . . . . Part Schematics Acquired . | . . . . . Parts Built . | . . . . . Authchips . | . . . . . Time . | . . . . . Total Part Build Rating . | . . . . . Parts Repaired 1 | . 1 . . . Time 26 | . 26 . . . Parts Recycled . | . . . . . Recycled Matter . | . . . . . Retrieved Matter . | . . . . . Retrieved Components . | . . . . . Parts Scanalyzed . | . . . . . Part Schematics Acquired . | . . . . . Parts Damaged . | . . . . . Bothacking | -11 -10 -10 -9 -8 ------------ Run | Yrd Mat Min Mat Mat Used RIF Installer . | . . . . . Robots Hacked . | . . . . . Non-combat . | . . . . . Combat . | . . . . . Robot Hacks Applied . | . . . . . Relay Couplers Released . | . . . . . Fabnet Peak Effective % . | . . . . . Robots Rewired . | . . . . . Allies Hacked . | . . . . . Hacks Repelled . | . . . . . Allies | -11 -10 -10 -9 -8 -------- Run | Yrd Mat Min Mat Mat Total Allies . | . . . . . Largest Group . | . . . . . Highest-Rated Group . | . . . . . Highest-Rated Ally . | . . . . . Total Orders . | . . . . . Ally Attacks . | . . . . . Total Damage . | . . . . . Kills . | . . . . . Allies Corrupted . | . . . . . Allies Melted . | . . . . . Intel | -11 -10 -10 -9 -8 ------- Run | Yrd Mat Min Mat Mat Robot Analysis Total . | . . . . . Derelict Logs Recovered . | . . . . . Drone Launches . | . . . . . Drone Recoveries . | . . . . . Exploration | -11 -10 -10 -9 -8 ------------- Run | Yrd Mat Min Mat Mat Turns Passed 1063 | 91 254 99 264 355 Spaces Moved 551 | 71 108 44 149 179 Core 34 | 23 . . . 11 Treads . | . . . . . Legs 431 | 48 44 44 130 165 Wheels 64 | . 64 . . . Hover . | . . . . . Flight 22 | . . . 19 3 Fastest Speed 50 | 50 120 120 114 50 Average Speed 124 | 97 139 120 119 132 Slowest Speed 400 | 120 400 120 127 250 Overloaded Moves . | . . . . . Propulsion Burnouts . | . . . . . Robots Hopped . | . . . . . Cave-ins Triggered . | . . . . . Exploration Rate (%) 15 | 8 25 10 15 19 Regions Visited 4 Branch Regions 1 Pre-discovered Areas . | . . . . . Known Exits Taken . | . . . . . Unknown Exits Taken 4 | 1 1 1 1 . Scrap Searched . | . . . . . Spaces Dug . | . . . . . Terrain Destroyed 7 | . . . . 7 Melee . | . . . . . Projectile 7 | . . . . 7 AOE . | . . . . . Terrain Rammed . | . . . . . Walls Destroyed . | . . . . . Machines Disabled . | . . . . . Actions | -11 -10 -10 -9 -8 --------- Run | Yrd Mat Min Mat Mat Total 768 | 87 157 66 197 261 Wait 37 | . . . . 37 Move 547 | 70 107 43 148 179 Hop . | . . . . . Pick Up 31 | 9 5 1 12 4 Fast Attach 8 | . 2 . 1 5 Attach 19 | 5 4 1 4 5 Detach 4 | . 3 . . 1 Swap 15 | . 3 3 5 4 Drop 18 | . 3 4 6 5 Fire 87 | 3 30 12 21 21 Melee . | . . . . . Ram . | . . . . . Kick 2 | . . 2 . . Crush . | . . . . . Escape Stasis . | . . . . . Rewire . | . . . . . Trap . | . . . . . Miscellaneous . | . . . . . Route ------- -11/Scrapyard -10/Materials (discovered 2 exits: *Mat / [*Min]) -10/Mines -9/Materials -8/Materials (discovered 1 exit: [*Sto]) History --------- Turn | Location | Event 2 | -11/Scrapyard | Met Revision 17 67 | -11/Scrapyard | Discovered new exit (range 8) 92 | -11/Scrapyard | Entered Materials 277 | -10/Materials | Discovered new exit (range 6) 325 | -10/Materials | Discovered new exit (range 15) 331 | -10/Materials | Repaired Sml. Matter Pod 344 | -10/Materials | Core integrity fell below 50% 346 | -10/Materials | Entered Mines 440 | -10/Mines | Discovered new exit (range 5) 445 | -10/Mines | Entered Materials 445 | -9/Materials | Evolved 2 slots: Power x1, Propulsion x1 663 | -9/Materials | Discovered new exit (range 12) 709 | -9/Materials | Entered another Materials area 709 | -8/Materials | Evolved 2 slots: Propulsion x2 994 | -8/Materials | Lost 6 parts (2p2n1u1w) 1018 | -8/Materials | Discovered new exit (range 15) 1024 | -8/Materials | Core integrity fell below 50% 1056 | -8/Materials | Core integrity fell below 20% 1064 | -8/Materials | Destroyed by S-10 Pest with Light Assault Rifle Last Messages --------------- Titanium Leg destroyed. EXIT=FOUND Titanium Leg destroyed. Critical hit (Blast). Knocked back. Acquired 5 matter. Acquired Hvy. Armor Plating. Acquired Mace. Critical hit (Burn: +37). M-13 Machinist repairs S-10 Pest. M-13 Machinist fits Backup Propulsion I on S-10 Pest. H-61 Shepherd calls for reinforcements. ALERT: Hostile activity reported, dispatching reinforcements to area. Hvy. Armor Plating destroyed. Critical hit (Burn: +37). Y-45 Defender destroyed. G-47 Trooper destroyed. Spread Laser destroyed. Map ----- +----------------------------------------------------+ | | | | | | | | | | | | | | | | | | | | | | | | | | | | | | | | | | | | | | | | | | | | | ??????????##############????????????? | | ??????????#% YH #????????????? | | ??????????# """ """ #????????????? | | ??????????# @ """ """ #????????????? | | ?????????#; ]s"""a""" #????????????? | | ?????????## !%=gum #????????????? | | ???????##########g########??????????? | | ???????# < ???? | | ???????# [ ######"#??????????? | | ???######## %######?????????????????? | | ???# # =#??????????????????????? | | ???# """ + #??????????????????????? | | ???# """ # ####???????????????????? | | ???# """ # # ? ???????????????????? | | ???# # # ??????????????????? | | ???#! # # """"" #????????????? | | ???####+### # """"" ?????????????? | | ?????# # """""??????????????? | | ?????# # """ ??????????????? | | ?????#+#### # ! ???????????????? | | ???? ?# #? ?????###????????? | | ??[ / ####+##########????????? | | # # / #????????? | | # = # % ## ########## | | # #####+#### # | | # """ """ # % # """ / = | | # """ """ # # """ # % | | # """ """ # # """ # | +----------------------------------------------------+ Best States ------------- Heat Dissipation 42 Energy Generation 15 Energy Capacity 400 Matter Stores 350 Matter Capacity 350 Sight Range 16 Terrain Scan Range 14 Terrain Scan Density 10 Armor Coverage 600 Evasion (%) 55 Item Schematics ----------------- None Robot Schematics ------------------ None Fabricated ------------ Nothing Alien Tech Used ----------------- None Achievements -------------- None Challenges ------------ None Game ------ Seed RecyclingRemoteTearclaws Manual? 0 Play Time 00:32:35 Cumulative 1.7 hours Start 2024.03.27 @ 11:28:38 End 2024.03.27 @ 12:03:38 Sessions 3 Manual Loads 0 Difficulty Rogue Special Mode None Game No. 2 Rogue 1 Adventurer 1 Explorer 0 Win Type - Total 0 Types 0/0/0/0/0/0/0/0/0 Lore% 0 Gallery% 4 Achievement% 7 Wizard Run 0 Options --------- Layout 1 ASCII 0 Keyboard 0 Movement Mouse Keybinds 0 Fullscreen 0 Font 20/SmallcapsGlow Map View 50x35 Zoom Use 0% Tactical HUD 0 Map Filters NONE Filters NONE Steam 1 RUN: caadca47-1628-4bcb-9922-7589f0a411e9